Cogmind - Beta 12 @@@ ROGUE MODE // 2023.05.28 @ 20:17:42 Player: darki Result: Core destroyed Performance ------------- Evolutions (7) 3500 Regions Visited (12) 2400 Robots Destroyed (151) 755 Value Destroyed (6106) 6106 Prototype IDs (32) 640 Alien Tech Used (3) 600 Bonus (2320) 2320 TOTAL SCORE: 16321 Bonus ------- Triggered Max Security 1000 High Alert Combat Kills 100 Follower Combat Kills 920 Aligned with FarCom 300 Cogmind --------- Core Integrity 0/1300 Matter 65/300 Energy 85/100 System Corruption 35% Temperature Cool (0) Movement Core (50) Location -3/Quarantine Parts ------- > --- POWER (1) -------- (None) > --- PROPULSION (2) --- (None) > --- UTILITY (14) ----- (None) > --- WEAPON (4) ------- (None) > --- INVENTORY (5) ---- Dimensional Node Initializer Nova Cannon Peak State ------------ > --- POWER ------------ Micro Antimatter Reactor > --- PROPULSION ------- Armored Huge Wheel > --- UTILITY ---------- Advanced Cooling System Improved Coolant Injector Superbattery Advanced Melee Analysis Suite Advanced Melee Analysis Suite Advanced Melee Analysis Suite Advanced Melee Analysis Suite Improved Target Analyzer Advanced Target Analyzer Advanced Target Analyzer Advanced Target Analyzer Advanced Target Analyzer Improved Armor Integrity Analyzer Advanced Focal Shield > --- WEAPON ----------- Kinetic Spear Kinetic Spear Kinetic Spear Kinetic Spear > --- INVENTORY -------- Advanced Heat Sink Heavy Disruptor Cannon Phase Cannon Nova Cannon [Rating: 136] Favorites ----------- Power Hybrid Deuterium Engine Engine Hybrid Deuterium Engine Power Core Reinforced Fission Core Reactor Micro Antimatter Reactor Propulsion Improved Treads Treads Improved Treads Leg Aluminum Leg Wheel Wheel Utility Superbattery Device Improved Heat Sink Storage Superbattery Processor Advanced Melee Analysis Suite Hackware Hacking Suite Protection Hardened Heavy Armor Plating Weapon Gatling Laser Energy Gun Gatling Laser Energy Cannon Plasma Cannon Ballistic Gun Assault Rifle Ballistic Cannon Mass Driver Launcher Grenade Launcher Slashing Weapon Power Sword Piercing Weapon Kinetic Spear Build | -11 -10 -10 -10 -9 -8 -7 -6 -5 -4 -4 -3 -3 ------- Run | Jun Mat Min Exi Min Mat Fac Fac Fac Fac Ext Res Qua Slots Evolved 14 | . . . . . 4 2 2 2 2 . 2 . Power . | . . . . . . . . . . . . . Propulsion . | . . . . . . . . . . . . . Utility 12 | . . . . . 4 . 2 2 2 . 2 . Weapon 2 | . . . . . . 2 . . . . . . Parts Attached 156 | . 10 2 . 3 13 22 14 7 7 25 44 9 Power 17 | . 2 . . . 2 1 1 . . 3 6 2 Engine 9 | . 2 . . . 2 1 1 . . 1 2 . Core 4 | . . . . . . . . . . 1 2 1 Reactor 4 | . . . . . . . . . . 1 2 1 Propulsion 20 | . 2 . . . 2 2 3 . 2 3 6 . Treads 13 | . 2 . . . 2 . 3 . 2 3 1 . Leg . | . . . . . . . . . . . . . Wheel 7 | . . . . . . 2 . . . . 5 . Hover . | . . . . . . . . . . . . . Flight . | . . . . . . . . . . . . . Utility 63 | . 1 . . . 7 8 4 4 . 10 26 3 Device 26 | . 1 . . . 1 3 . 3 . 3 13 2 Storage 1 | . . . . . 1 . . . . . . . Processor 19 | . . . . . 2 . . . . 3 13 1 Hackware 2 | . . . . . 2 . . . . . . . Protection 15 | . . . . . 1 5 4 1 . 4 . . Artifact . | . . . . . . . . . . . . . Weapon 56 | . 5 2 . 3 2 11 6 3 5 9 6 4 Energy Gun 14 | . . . . . 1 5 5 1 2 . . . Energy Cannon 17 | . 2 2 . . 1 5 1 . 2 . 1 3 Ballistic Gun 3 | . 2 . . 1 . . . . . . . . Ballistic Cannon 2 | . . . . . . . . 1 1 . . . Launcher 5 | . 1 . . 2 . 1 . 1 . . . . Special Weapon . | . . . . . . . . . . . . . Impact Weapon . | . . . . . . . . . . . . . Slashing Weapon 9 | . . . . . . . . . . 9 . . Piercing Weapon 6 | . . . . . . . . . . . 5 1 Special Melee Weapon . | . . . . . . . . . . . . . Unidentified Prototypes 10 | . . . . . 1 2 . 1 . . 2 4 Parts Lost 48 | . 1 . . . 1 3 . 8 . 11 18 6 Power 3 | . . . . . . . . 1 . . 2 . Propulsion 11 | . 1 . . . . 2 . 1 . 3 3 1 Utility 26 | . . . . . 1 . . 4 . 6 10 5 Weapon 8 | . . . . . . 1 . 2 . 2 3 . Highest Loss Streak 10 | . 1 . . . 1 2 . 4 . 6 10 4 To Critical Strikes 3 | . 1 . . . . . . . . 1 . 1 Average Slot Usage (%) 87 | . 92 100 100 100 99 94 91 79 44 60 90 78 Engine 5 | . 14 14 14 14 9 7 6 4 . . . . Treads 10 | . 2 28 28 28 18 12 10 11 8 9 3 . Leg 1 | . 23 . . . . . . . . . . . Device 12 | . 9 14 14 14 9 14 13 9 5 6 15 17 Storage 7 | . 14 14 14 14 18 7 6 5 5 5 3 . Processor 12 | . . . . . 9 7 6 5 5 7 40 40 Hackware 1 | . . . . . 15 . . . . . . . Protection 7 | . . . . . 1 11 18 17 . 6 . . Energy Gun 9 | . . . . . 8 21 19 8 8 2 . . Energy Cannon 7 | . 19 16 28 14 9 8 6 9 4 1 . 9 Slashing Weapon 3 | . . . . . . . . . . 16 8 . Piercing Weapon 1 | . . . . . . . . . . . 9 3 Naked Turns 1 | . . . . . . . . . . . . 1 Heaviest Build 80 | 13 17 21 21 20 29 54 70 80 29 73 54 48 Greatest Support 60 | 20 40 40 40 40 46 46 58 58 60 60 60 10 Greatest Overweight (x) 17 | . 1 . . . . 17 6 10 1 1 8 14 Average Overweight (x) . | . . . . . . 1 1 1 . . . 4 Largest Inventory Capacity 8 | 8 8 8 8 8 8 8 5 5 5 5 5 5 Average Capacity 5 | 8 8 8 8 8 8 5 5 5 5 5 5 5 Most Carried 8 | 6 8 8 8 8 8 6 5 5 5 5 5 5 Average Carried 5 | 6 7 7 7 7 7 4 4 4 3 4 4 3 Final Capacity 8 | 8 8 8 8 8 8 5 5 5 5 5 5 5 Final Carried 8 | 6 7 8 8 8 7 5 5 3 4 5 5 2 Class Distribution -------------------- 25% | Scavenger-Mutant 22% | Mutant 17% | Tank 12% | Skirmisher 7% | Pyromaniac-Tank 6% | Scavenger-Tank 4% | Hacker-Mutant Dominant Class ---------------- Mutant | -10/Materials Mutant | -10/Mines Mutant | -10/Exiles Mutant | -9/Mines Hacker-Mutant | -8/Materials Skirmisher | -7/Factory Pyromaniac-Tank | -6/Factory Tank | -5/Factory Mutant | -4/Factory Scavenger-Mutant | -4/Extension Scavenger-Mutant | -3/Research Scavenger-Mutant | -3/Quarantine Resources | -11 -10 -10 -10 -9 -8 -7 -6 -5 -4 -4 -3 -3 ----------- Run | Jun Mat Min Exi Min Mat Fac Fac Fac Fac Ext Res Qua Matter Collected 2210 | 192 43 119 . 62 120 240 137 104 23 557 543 70 Remotely . | . . . . . . . . . . . . . Salvage Created 7498 | . 592 119 . 111 307 1415 610 321 23 766 3178 56 Parts 332 | . 41 8 . 13 18 53 15 12 1 20 146 5 Haulers Intercepted 10 | . 2 . . . 1 2 2 . . . 3 . Recyclers Shooed . | . . . . . . . . . . . . . Parts Field Recycled . | . . . . . . . . . . . . . Retrieved Matter . | . . . . . . . . . . . . . Parts Self-Destructed . | . . . . . . . . . . . . . Prevented . | . . . . . . . . . . . . . Kills | -11 -10 -10 -10 -9 -8 -7 -6 -5 -4 -4 -3 -3 ------- Run | Jun Mat Min Exi Min Mat Fac Fac Fac Fac Ext Res Qua Combat Hostiles Destroyed 104 | . 13 2 . 7 5 22 7 10 . 8 30 . Melee 38 | . . . . . . . . . . 8 30 . Guns 21 | . 1 . . 1 1 12 3 3 . . . . Cannons 29 | . 9 2 . . 4 8 2 4 . . . . AOE 11 | . 2 . . 6 . . . 3 . . . . Classes Destroyed 15 | . 6 1 . 1 1 4 . 1 . . . 1 Worker 4 | . . . . 2 . . . . . . 2 . Builder 6 | . . . . . . 2 . 1 . 2 1 . Tunneler 1 | . 1 . . . . . . . . . . . Hauler 10 | . 2 . . . 1 2 2 . . . 3 . Recycler 10 | . . . . . . 3 . . . 1 6 . Operator 7 | . 2 . . . 1 1 . 1 1 1 . . Watcher 8 | . 2 . . . . 2 2 . . . 2 . Swarmer 21 | . 3 . . 7 . 2 . 4 . . 5 . Grunt 32 | . 10 . . . 2 8 4 4 . 1 3 . Duelist 2 | . . . . . . 2 . . . . . . Researcher 1 | . . . . . . . . . . . . 1 Sentry 17 | . . 2 . . 1 4 1 1 . 3 5 . Hunter 5 | . . . . . 2 . . . . 3 . . Programmer 26 | . . . . . . 6 2 . . 1 17 . Heavy 1 | . . . . . . . . 1 . . . . Best Kill Streak 7 | . 7 2 . 5 2 6 3 5 1 3 6 1 Combat Bots Only 5 | . 4 2 . 4 1 4 3 5 . 2 5 . Max Kills in Single Turn 5 | . 2 1 . 5 1 1 1 2 1 1 1 1 Gunslinging . | . . . . . . . . . . . . . Exploded 4 | . 1 . . 4 . . . 1 . . . . Melee 1 | . . . . . . . . . . 1 1 . Uniques/NPCs Destroyed . | . . . . . . . . . . . . . Combat | -11 -10 -10 -10 -9 -8 -7 -6 -5 -4 -4 -3 -3 -------- Run | Jun Mat Min Exi Min Mat Fac Fac Fac Fac Ext Res Qua Damage Taken 11013 | . 360 104 . 73 183 1438 232 1676 . 3026 3369 552 Core 2288 | . 31 17 . 21 23 149 33 232 . 560 1023 199 Absorbed by Shields 1447 | . . . . . . . . . . 214 1233 . Core Remaining (%) 81 | 100 . . . 72 95 78 96 76 . 51 . . Volleys Fired 164 | . 41 4 . 5 16 47 19 24 5 2 1 . Largest 4 | . 2 2 . 2 2 4 4 4 3 1 1 . Hottest 325 | . 120 112 . 86 121 320 325 315 222 57 113 . Shots Fired 461 | . 80 8 . 10 32 185 76 55 11 2 1 1 Gun 222 | . 9 . . 3 16 124 57 13 . . . . Cannon 229 | . 68 8 . 5 16 61 19 37 11 2 1 1 Launcher 10 | . 3 . . 2 . . . 5 . . . . Special . | . . . . . . . . . . . . . Kinetic 39 | . 9 . . 3 . . . 20 5 2 . . Thermal 363 | . 68 . . . 32 149 76 30 6 . 1 1 Explosive 10 | . 3 . . 2 . . . 5 . . . . Electromagnetic 49 | . . 8 . 5 . 36 . . . . . . Robot Hit Streak 18 | . 16 6 . 8 7 18 15 10 2 2 . . Robot Miss Streak 5 | . 4 . . 3 3 5 3 2 2 1 . . Penetration Max 1 | . . . . . . . . 1 . . . . Secondary Targets . | . . . . . . . . . . . . . Shots Hit Robots 510 | . 51 6 . 5 20 146 56 35 3 46 141 1 Core Hits 268 | 1 24 3 . 9 9 85 28 30 1 20 57 1 Critical Kills 1 | . 1 . . . . . . . . . . . Critical Parts Destroyed . | . . . . . . . . . . . . . Critical Strikes 47 | . 1 . . . 1 . 3 . . 6 36 . Burn 4 | . . . . . 1 . 3 . . . . . Meltdown 1 | . 1 . . . . . . . . . . . Sever 16 | . . . . . . . . . . 6 10 . Impale 26 | . . . . . . . . . . . 26 . Melee Attacks 250 | . . . . . . . . . . 67 180 3 Impact . | . . . . . . . . . . . . . Slashing 121 | . . . . . . . . . . 67 54 . Piercing 129 | . . . . . . . . . . . 126 3 Sneak Attacks 25 | . . . . . . . . . . 6 18 1 Combat Hostiles 5 | . . . . . . . . . . . 5 . Follow-up Attacks 56 | . . . . . . . . . . 14 42 . Damage Inflicted 17770 | 7 1143 113 . 347 455 3135 1374 1539 83 2049 7406 119 Guns 3940 | . 51 . . 13 180 2397 1049 250 . . . . Cannons 3180 | . 800 113 . 41 275 738 325 766 83 39 . . Explosions 1108 | . 292 . . 293 . . . 523 . . . . Melee 9533 | . . . . . . . . . . 2010 7406 117 Ramming 9 | 7 . . . . . . . . . . . 2 Kinetic 651 | . 51 . . 13 . . . 515 33 39 . . Thermal 5881 | . 800 . . . 455 2701 1374 501 50 . . . Explosive 1108 | . 292 . . 293 . . . 523 . . . . Electromagnetic 588 | . . 113 . 41 . 434 . . . . . . Impact . | . . . . . . . . . . . . . Slashing 4630 | . . . . . . . . . . 2010 2620 . Piercing 4903 | . . . . . . . . . . . 4786 117 Highest Corruption 35 | . . . . . . 2 . 1 . 4 27 35 Average Corruption 9 | . . . . . . 1 . 1 . 4 14 20 Corruption Purged . | . . . . . . . . . . . . . Corruption Blocked . | . . . . . . . . . . . . . Effects 107 | . . . . . . 6 . 1 . 27 60 13 Message Errors 25 | . . . . . . 1 . . . 7 14 3 Matter Fused 32 | . . . . . . 2 . . . 8 18 4 Heat Flow Errors 17 | . . . . . . 2 . 1 . 5 7 2 Energy Discharges 12 | . . . . . . . . . . 2 7 3 Parts Rejected 2 | . . . . . . . . . . . 2 . Data Loss (minor) 12 | . . . . . . 1 . . . 4 7 . Data Loss (major) 3 | . . . . . . . . . . 1 2 . Misfires 1 | . . . . . . . . . . . . 1 Alerts 3 | . . . . . . . . . . . 3 . Overload Shots . | . . . . . . . . . . . . . Overflow Damage 937 | . 35 . . 49 . . . 11 6 161 675 . Projectiles 32 | . 17 . . . . . . 9 6 . . . Explosions 69 | . 18 . . 49 . . . 2 . . . . Melee 836 | . . . . . . . . . . 161 675 . Knockbacks 2 | . . . . . . . . 1 1 . . . Impact . | . . . . . . . . . . . . . Kinetic 2 | . . . . . . . . 1 1 . . . Secondary . | . . . . . . . . . . . . . Self-Inflicted Damage 1 | . . . . . . . . . . . . 1 Shots . | . . . . . . . . . . . . . Rammed 1 | . . . . . . . . . . . . 1 Targets Rammed 2 | 1 . . . . . . . . . . . 1 Kicked 1 | 1 . . . . . . . . . . . . Crushed . | . . . . . . . . . . . . . Highest Temperature 589 | . 234 141 . . 30 406 445 589 336 252 195 157 Average Temperature 129 | . 89 76 . . 8 93 142 291 164 85 91 87 Received Heat Transfer 1629 | . 186 54 . . 15 369 54 306 . 440 178 27 Effects 16 | . . . . . . 1 4 11 . . . . Shutdowns 2 | . . . . . . 1 . 1 . . . . Energy Bleed 1 | . . . . . . . . 1 . . . . Interference 3 | . . . . . . . 3 . . . . . Matter Decay 3 | . . . . . . . 1 2 . . . . Short Circuit 3 | . . . . . . . . 3 . . . . Damage (minor) 1 | . . . . . . . . 1 . . . . Damage (major) 2 | . . . . . . . . 2 . . . . Damage (core) 1 | . . . . . . . . 1 . . . . Siege Activations . | . . . . . . . . . . . . . Robots Corrupted . | . . . . . . . . . . . . . Combat Hostiles . | . . . . . . . . . . . . . Parts Fried 3 | . . 1 . . . 2 . . . . . . Impact Corruptions . | . . . . . . . . . . . . . Robots Melted 6 | . 1 . . . . 2 3 . . . . . Combat Hostiles 5 | . 1 . . . . 2 2 . . . . . Parts Melted 40 | . 3 . . . 1 21 11 2 2 . . . Heat Transferred 12428 | . 1702 . . . 851 5667 3225 883 100 . . . Parts Sabotaged 2 | . . . . . . . . . . . . 2 Parts Stolen . | . . . . . . . . . . . . . Parts Stripped . | . . . . . . . . . . . . . Power Chain Reactions . | . . . . . . . . . . . . . Missiles Intercepted . | . . . . . . . . . . . . . Alert | -11 -10 -10 -10 -9 -8 -7 -6 -5 -4 -4 -3 -3 ------- Run | Jun Mat Min Exi Min Mat Fac Fac Fac Fac Ext Res Qua Peak Influence 1635 | . 472 160 . 184 310 172 173 257 73 377 449 1635 Initial 217 | . . 105 . . 71 20 66 . 39 35 105 217 Average 171 | . 210 136 . 126 137 60 56 66 66 153 213 1612 Maximum Alert Level 5 | . 2 . . . 1 . . 1 . 1 2 5 Low Security (%) 78 | 100 47 100 . 100 70 100 100 79 100 57 58 . Level 1 15 | . 46 . . . 29 . . 20 . 42 27 . Level 2 2 | . 5 . . . . . . . . . 13 . Level 3 . | . . . . . . . . . . . . . Level 4 . | . . . . . . . . . . . . . Level 5 . | . . . . . . . . . . . . . High Security . | . . . . . . . . . . . . . Max Security 3 | . . . . . . . . . . . . 99 Squads Dispatched 51 | . 3 . . . 3 6 3 4 . 5 7 20 Investigation 6 | . 1 . . . 1 . 1 . . 3 . . Extermination 13 | . . . . . . 6 1 1 . . 5 . Reinforcement 9 | . 2 . . . 2 . 1 2 . 2 . . Assault 21 | . . . . . . . . . . . 1 20 Garrison 2 | . . . . . . . . 1 . . 1 . Intercept . | . . . . . . . . . . . . . Searches Triggered . | . . . . . . . . . . . . . Construction Impeded 1 | . . . . . . . . 1 . . . . Haulers Reinforced 1 | . . . . . . . 1 . . . . . Active Scanning Responses . | . . . . . . . . . . . . . Cargo Convoy Interrupts . | . . . . . . . . . . . . . Stealth | -11 -10 -10 -10 -9 -8 -7 -6 -5 -4 -4 -3 -3 --------- Run | Jun Mat Min Exi Min Mat Fac Fac Fac Fac Ext Res Qua Distress Signals 10 | . 1 . . . 3 . 1 . . 3 2 . Communications Jammed . | . . . . . . . . . . . . . Distress Signals . | . . . . . . . . . . . . . Times Spotted 202 | . 20 2 . 7 14 25 13 18 1 29 45 28 Peak Tracking Total 18 | . 3 2 . 4 4 4 4 5 1 5 7 18 Tactical Retreats 8 | . 1 . . . . 1 1 . . 2 3 . Traps | -11 -10 -10 -10 -9 -8 -7 -6 -5 -4 -4 -3 -3 ------- Run | Jun Mat Min Exi Min Mat Fac Fac Fac Fac Ext Res Qua Traps Triggered 7 | . 1 . . . . 2 1 1 . 2 . . Indirectly . | . . . . . . . . . . . . . Trap Hack Attempts . | . . . . . . . . . . . . . Triggered . | . . . . . . . . . . . . . Disarmed . | . . . . . . . . . . . . . Reprogrammed . | . . . . . . . . . . . . . Reused . | . . . . . . . . . . . . . Traps Extracted . | . . . . . . . . . . . . . Installed . | . . . . . . . . . . . . . Triggered . | . . . . . . . . . . . . . Machines | -11 -10 -10 -10 -9 -8 -7 -6 -5 -4 -4 -3 -3 ---------- Run | Jun Mat Min Exi Min Mat Fac Fac Fac Fac Ext Res Qua Machines Disabled 4 | . 1 . . . 1 . . . . 1 . 1 Max in Single Turn 1 | . 1 . . . 1 . . . . 1 . 1 Machines Repaired . | . . . . . . . . . . . . . Machines Sabotaged . | . . . . . . . . . . . . . Overloaded Fab Kills . | . . . . . . . . . . . . . Hacking | -11 -10 -10 -10 -9 -8 -7 -6 -5 -4 -4 -3 -3 --------- Run | Jun Mat Min Exi Min Mat Fac Fac Fac Fac Ext Res Qua Machines Accessed 35 | . 2 . 1 . 1 9 3 3 2 11 3 . Terminals 27 | . 2 . . . 1 6 1 2 2 11 2 . Fabricators 5 | . . . . . . 2 2 1 . . . . Repair Stations . | . . . . . . . . . . . . . Recycling Units . | . . . . . . . . . . . . . Scanalyzers . | . . . . . . . . . . . . . Garrison Access 2 | . . . . . . 1 . . . . 1 . Total Hacks 61 | . 4 . 1 . 5 11 3 5 4 23 5 . Successful 19 | . 1 . 1 . 3 4 1 . 1 8 . . Failed 42 | . 3 . . . 2 7 2 5 3 15 5 . Catastrophic 10 | . 2 . . . . 1 . 2 1 3 1 . Database Lockouts . | . . . . . . . . . . . . . Manual 17 | . 5 . 1 . 5 5 1 . . . . . Terminals 51 | . 4 . . . 5 7 1 3 4 23 4 . Fabricators 6 | . . . . . . 2 2 2 . . . . Repair Stations . | . . . . . . . . . . . . . Recycling Units . | . . . . . . . . . . . . . Scanalyzers . | . . . . . . . . . . . . . Garrison Access 3 | . . . . . . 2 . . . . 1 . Terminal Hacks 17 | . 1 . 1 . 3 3 . . 1 8 . . Record 1 | . . . . . . . . . . 1 . . Open Door 6 | . . . . . . . . . 1 5 . . Open DSF 1 | . . . . . . 1 . . . . . . Branch Access Points 2 | . 1 . . . 1 . . . . . . . Alert Level 2 | . . . . . 1 1 . . . . . . Unreport Threat 2 | . . . . . 1 1 . . . . . . Locate Traps 1 | . . . . . . . . . . 1 . . Zone Layout 1 | . . . . . . . . . . 1 . . EX-Prototype ID Bank 1 | . . . 1 . . . . . . . . . Fabricator Hacks 2 | . . . . . . 1 1 . . . . . Network Status 2 | . . . . . . 1 1 . . . . . Repair Station Hacks . | . . . . . . . . . . . . . Recycling Unit Hacks . | . . . . . . . . . . . . . Scanalyzer . | . . . . . . . . . . . . . Garrison Access Hacks . | . . . . . . . . . . . . . Unauthorized Hacks . | . . . . . . . . . . . . . Terminals . | . . . . . . . . . . . . . Fabricators . | . . . . . . . . . . . . . Repair Stations . | . . . . . . . . . . . . . Recycling Units . | . . . . . . . . . . . . . Scanalyzers . | . . . . . . . . . . . . . Garrison Access . | . . . . . . . . . . . . . Data Cores Recovered 4 | . 1 . . . . . . 1 1 1 . . Used . | . . . . . . . . . . . . . Hacking Detections 28 | . 2 . . . 1 5 3 3 2 9 3 . Full Trace Events 4 | . . . . . 1 . . . . 3 . . Feedback Events 1 | . . . . . 1 . . . . . . . Hackware Fried 1 | . . . . . 1 . . . . . . . Feedback Blocked . | . . . . . . . . . . . . . Robot Schematics Acquired . | . . . . . . . . . . . . . Robots Built . | . . . . . . . . . . . . . Authchips . | . . . . . . . . . . . . . Time . | . . . . . . . . . . . . . Total Robot Build Rating . | . . . . . . . . . . . . . Part Schematics Acquired 2 | . . . . . . . . . . . . 2 Parts Built . | . . . . . . . . . . . . . Authchips . | . . . . . . . . . . . . . Time . | . . . . . . . . . . . . . Total Part Build Rating . | . . . . . . . . . . . . . Parts Repaired . | . . . . . . . . . . . . . Time . | . . . . . . . . . . . . . Parts Recycled . | . . . . . . . . . . . . . Recycled Matter . | . . . . . . . . . . . . . Retrieved Matter . | . . . . . . . . . . . . . Retrieved Components . | . . . . . . . . . . . . . Parts Scanalyzed . | . . . . . . . . . . . . . Part Schematics Acquired . | . . . . . . . . . . . . . Parts Damaged . | . . . . . . . . . . . . . Bothacking | -11 -10 -10 -10 -9 -8 -7 -6 -5 -4 -4 -3 -3 ------------ Run | Jun Mat Min Exi Min Mat Fac Fac Fac Fac Ext Res Qua Used RIF Installer . | . . . . . . . . . . . . . Robots Hacked . | . . . . . . . . . . . . . Non-combat . | . . . . . . . . . . . . . Combat . | . . . . . . . . . . . . . Robot Hacks Applied . | . . . . . . . . . . . . . Relay Couplers Released . | . . . . . . . . . . . . . Fabnet Peak Effective % . | . . . . . . . . . . . . . Robots Rewired 3 | . . . . . . . . . . 3 . . Allies Hacked 1 | . . . . . . . . . . 1 . . Hacks Repelled . | . . . . . . . . . . . . . Allies | -11 -10 -10 -10 -9 -8 -7 -6 -5 -4 -4 -3 -3 -------- Run | Jun Mat Min Exi Min Mat Fac Fac Fac Fac Ext Res Qua Total Allies 13 | . . . . 3 . . . . . 10 . . Largest Group 6 | . . . . 3 3 . . . . 6 . . Highest-Rated Group 348 | . . . . 40 40 . . . . 348 . . Highest-Rated Ally 159 | . . . . 16 16 . . . . 159 . . Total Orders . | . . . . . . . . . . . . . Ally Attacks 130 | . . . . . 47 . . . . 83 . . Total Damage 3103 | . . . . . 529 . . . . 2574 . . Kills 23 | . . . . . 5 . . . . 18 . . Allies Corrupted 3 | . . . . . . . . . . 3 . . Allies Melted . | . . . . . . . . . . . . . Intel | -11 -10 -10 -10 -9 -8 -7 -6 -5 -4 -4 -3 -3 ------- Run | Jun Mat Min Exi Min Mat Fac Fac Fac Fac Ext Res Qua Robot Analysis Total . | . . . . . . . . . . . . . Derelict Logs Recovered 3 | . . 2 . 1 . . . . . . . . Drone Launches . | . . . . . . . . . . . . . Drone Recoveries . | . . . . . . . . . . . . . Exploration | -11 -10 -10 -10 -9 -8 -7 -6 -5 -4 -4 -3 -3 ------------- Run | Jun Mat Min Exi Min Mat Fac Fac Fac Fac Ext Res Qua Turns Passed 11294 | 16 492 279 363 370 720 2888 1483 842 230 1311 1895 405 Spaces Moved 4544 | 13 208 162 223 212 344 969 501 295 138 704 669 106 Core 43 | . . . . . . 2 . 1 13 . 20 7 Treads 3558 | . 24 162 223 212 344 896 369 294 125 704 205 . Legs 197 | 13 184 . . . . . . . . . . . Wheels 746 | . . . . . . 71 132 . . . 444 99 Hover . | . . . . . . . . . . . . . Flight . | . . . . . . . . . . . . . Fastest Speed 95 | 120 120 160 160 160 160 110 110 240 100 145 95 95 Average Speed 179 | 120 134 160 160 160 160 229 215 241 140 158 130 171 Slowest Speed 900 | 120 190 160 160 160 160 900 320 550 145 225 450 750 Overloaded Moves . | . . . . . . . . . . . . . Propulsion Burnouts . | . . . . . . . . . . . . . Robots Hopped . | . . . . . . . . . . . . . Cave-ins Triggered . | . . . . . . . . . . . . . Teleports 4 | . . . . . . . . . . . . 4 Exploration Rate (%) 29 | 3 47 37 59 57 32 30 16 10 3 75 11 8 Regions Visited 12 Branch Regions 5 Pre-discovered Areas . | . . . . . . . . . . . . . Known Exits Taken 6 | . 1 . . . 1 1 1 1 1 . . . Unknown Exits Taken 6 | 1 . 1 1 1 . . . . . 1 1 . Scrap Searched 1 | . . . . 1 . . . . . . . . Spaces Dug 20 | . . . . . . . . 3 2 1 14 . Terrain Destroyed 78 | . 15 . . 14 . . . 25 7 3 14 . Melee 14 | . . . . . . . . . . 1 13 . Projectile 27 | . . . . . . . . 17 7 2 1 . AOE 37 | . 15 . . 14 . . . 8 . . . . Terrain Rammed . | . . . . . . . . . . . . . Walls Destroyed . | . . . . . . . . . . . . . Machines Disabled . | . . . . . . . . . . . . . Actions | -11 -10 -10 -10 -9 -8 -7 -6 -5 -4 -4 -3 -3 --------- Run | Jun Mat Min Exi Min Mat Fac Fac Fac Fac Ext Res Qua Total 6993 | 13 342 173 230 232 482 1498 858 389 167 825 1462 322 Wait 1824 | . 67 5 6 9 101 441 304 59 8 25 609 190 Move 4532 | 12 207 161 222 211 343 968 500 294 137 703 668 106 Hop . | . . . . . . . . . . . . . Pick Up 32 | . 8 1 1 2 2 2 5 1 3 1 2 4 Fast Attach 92 | . 4 . . . 4 12 10 4 2 16 33 7 Attach 26 | . 1 . . . 5 3 . 2 5 3 1 6 Detach 7 | . . . . . 2 2 . . 3 . . . Swap 44 | . 5 2 . 3 4 7 4 1 . 6 10 2 Drop 87 | . 9 . 1 2 5 16 16 4 4 6 21 3 Fire 164 | . 41 4 . 5 16 47 19 24 5 2 1 . Melee 162 | . . . . . . . . . . 42 117 3 Ram 1 | . . . . . . . . . . . . 1 Kick 1 | 1 . . . . . . . . . . . . Crush . | . . . . . . . . . . . . . Escape Stasis 4 | . . . . . . . . . . 4 . . Rewire 17 | . . . . . . . . . . 17 . . Trap . | . . . . . . . . . . . . . Miscellaneous . | . . . . . . . . . . . . . Route ------- -11/Junkyard -10/Materials (discovered 2 exits: [*Mat] / *Min) -10/Mines -10/Exiles -9/Mines -8/Materials -7/Factory -6/Factory -5/Factory -4/Factory -4/Extension (discovered 2 exits: *Res / [*Cet]) -3/Research -3/Quarantine History --------- Turn | Location | Event 1 | -11/Junkyard | Discovered new exit (range 3) 17 | -11/Junkyard | Entered Materials 72 | -10/Materials | Identified exit to Mines 303 | -10/Materials | Discovered new exit (range 11) 315 | -10/Materials | Build established: Mutant 509 | -10/Materials | Entered Mines 521 | -10/Mines | Learned Materials emergency access door positions 782 | -10/Mines | Deemed a non-threat by the Exiles lab entrance 782 | -10/Mines | Discovered new exit (range 5) 788 | -10/Mines | Entered Exiles 828 | -10/Exiles | Met 8R-AWN 857 | -10/Exiles | Met EX-HEX 904 | -10/Exiles | Met EX-BIN 921 | -10/Exiles | Aligned with FarCom system 923 | -10/Exiles | Given EX-Vault access code 960 | -10/Exiles | Opened EX-Vault 973 | -10/Exiles | Found Superbattery 1011 | -10/Exiles | Warned to stay clear of 0b10 Research branches 1055 | -10/Exiles | Met EX-DEC 1129 | -10/Exiles | Discovered new exit (range 14) 1151 | -10/Exiles | Left Exiles lab with Superbattery 1151 | -10/Exiles | Entered Mines 1423 | -9/Mines | Assisted by bots powering up and referring to "LRC-V3" 1437 | -9/Mines | Learned Materials trap positions 1511 | -9/Mines | Discovered new exit (range 6) 1521 | -9/Mines | Entered Materials 1521 | -8/Materials | Accompanied by 3 allies 1521 | -8/Materials | Evolved 4 slots: Utility x4 1522 | -8/Materials | Loaded intel: 14 trap records 1828 | -8/Materials | Build established: Hacker-Mutant 2079 | -8/Materials | Hacking Suite fried by hacking feedback 2170 | -8/Materials | Discovered new exit (range 6) 2178 | -8/Materials | Identified exit to Factory 2241 | -8/Materials | Entered Factory 2241 | -7/Factory | Evolved 2 slots: Weapon x2 2546 | -7/Factory | Build established: Skirmisher 2861 | -7/Factory | Build established: Scavenger-Tank 3219 | -7/Factory | Build established: Tank 4341 | -7/Factory | Build established: Skirmisher 4347 | -7/Factory | Discovered new exit (range 15) 4392 | -7/Factory | Identified exit to Factory 5129 | -7/Factory | Entered another Factory area 5129 | -6/Factory | Evolved 2 slots: Utility x2 5536 | -6/Factory | Build established: Scavenger-Tank 5904 | -6/Factory | Build established: Pyromaniac-Tank 6396 | -6/Factory | Discovered new exit (range 10) 6418 | -6/Factory | Identified exit to Factory 6612 | -6/Factory | Entered another Factory area 6612 | -5/Factory | Evolved 2 slots: Utility x2 6750 | -5/Factory | Build established: Tank 7223 | -5/Factory | Discovered new exit (range 15) 7257 | -5/Factory | Lost 4 parts (3u1w) 7271 | -5/Factory | Identified exit to Factory 7409 | -5/Factory | Garrison activated, responded to threat 7454 | -5/Factory | Entered another Factory area 7454 | -4/Factory | Evolved 2 slots: Utility x2 7485 | -4/Factory | Lost 3 parts (1n1u1w) 7673 | -4/Factory | Discovered new exit (range 9) 7682 | -4/Factory | Identified exit to Extension 7684 | -4/Factory | Entered Extension 7799 | -4/Extension | Spotted B-86 Titan 7854 | -4/Extension | Build established: Mutant 8062 | -4/Extension | Rescued A7 8101 | -4/Extension | Rescued a captive Derelict 8102 | -4/Extension | Rescued a captive Derelict 8237 | -4/Extension | Rescued a captive Derelict 8298 | -4/Extension | P-70 Sage assimilated allied JE-JI7(b) 8305 | -4/Extension | P-70 Sage assimilated allied BX-T6C(h) 8317 | -4/Extension | Rescued a captive Derelict 8317 | -4/Extension | Rescued a captive Derelict 8443 | -4/Extension | Spotted B-86 Titan 8460 | -4/Extension | Extracted ID and sensor layout for unrecognized location from A7's data core 8463 | -4/Extension | Allies destroyed B-86 Titan 8479 | -4/Extension | Allies destroyed B-86 Titan 8590 | -4/Extension | Rescued a captive Derelict 8688 | -4/Extension | Build established: Scavenger-Mutant 8813 | -4/Extension | Lost 6 parts (2n4u) 8945 | -4/Extension | Discovered new exit (range 20) 8945 | -4/Extension | Discovered new exit (range 20) 8995 | -4/Extension | Entered Research 8995 | -3/Research | Evolved 2 slots: Utility x2 9642 | -3/Research | System corruption reached 10% 10249 | -3/Research | Lost 4 parts (1p1n2u) 10353 | -3/Research | Discovered new exit (range 12) 10520 | -3/Research | Garrison activated, responded to threat 10703 | -3/Research | Core integrity fell below 50% 10745 | -3/Research | First assault squad dispatched 10753 | -3/Research | Lost 10 parts (1p1n6u2w) 10890 | -3/Research | Entered Quarantine 10891 | -3/Quarantine | Maximum security lockdown engaged 10904 | -3/Quarantine | Found Alien Artifact 10904 | -3/Quarantine | Identified Transdimensional Reconstructor 10904 | -3/Quarantine | Warped through subspace 10905 | -3/Quarantine | Core integrity fell below 20% 10919 | -3/Quarantine | Lost 3 parts (2u1w) 10973 | -3/Quarantine | Found Alien Artifact 10973 | -3/Quarantine | Identified Dimensional Node Initializer 10973 | -3/Quarantine | Initialized slip node 10985 | -3/Quarantine | Found Alien Artifact 10985 | -3/Quarantine | Identified Hpw. Transdimensional Reconstructor 10985 | -3/Quarantine | Warped through subspace to slip node 10989 | -3/Quarantine | Found Dimensional Node Initializer 10991 | -3/Quarantine | Found Dimensional Node Initializer 11000 | -3/Quarantine | Found Hpw. Transdimensional Reconstructor 11002 | -3/Quarantine | Found Hpw. Transdimensional Reconstructor 11045 | -3/Quarantine | Spotted Striker 11055 | -3/Quarantine | Warped through subspace to slip node 11144 | -3/Quarantine | Warped through subspace to slip node 11294 | -3/Quarantine | Released all parts (10) 11294 | -3/Quarantine | Initialized slip node 11295 | -3/Quarantine | System corruption reached 30% 11295 | -3/Quarantine | Core destroyed Last Messages --------------- 11292_ C-30 ARC bursts open, deploying its payload. 11292_ P-80 Master unfolds itself. 11292_ H-77 Assassin unfolds itself. 11292_ P-80 Master unfolds itself. 11292_ E-15 Imp unfolds itself. 11292_ Slug penetrates B-74 Champion. 11294_ Released Mic. Antimatter Reactor. 11294_ Released Exp. Power Amplifier. 11294_ Released System Guard. 11294_ Released Kinetic Spear. 11294_ Released Adv. Target Analyzer. 11294_ Released Adv. Melee Analysis Suite. 11294_ Released Adv. Heat Sink. 11294_ Released Hvy. Disruptor Cannon. 11294_ Initializer activates and latches into the ground. 11295_ Slammed into H-77 Assassin. 11295_ Slug penetrates Suspension Chamber. 11295_ Dimensional Slip Node implodes. 11295_ Penetrated by Slug. 11295_ Slug penetrates B-74 Champion. Map ----- +----------------------------------------------------+ | | | | | | | ????????????????????????????????? | | ????????????????????????????????? | | ????????????????????????????????? | | ????????????????????????????????? | | ????????????????????????????????? | | ????????????????????????????????? | | ????????????????????????????????? | | ????????????????????????????????? | | ????????????????????????????????? | | ????????????????????????????????? | | ????????????????????????????????? | | ????????????????????????????????? | | ????????????????????????????????? | | ????????????????????????????????? | | ????????????????????????????????? | | ????????????????????????????????? | | ??????????????????????????###???? | | ?????????????????????????# ???? | | ?????????????????????????# "???? | | ?????????????????????????#! "???? | | ????###################### """ + | | ????#]! lbg# # # """ # | | ????# p"@bp# # # """ # | | ????#""he|=# # *#! # | | ????#" geg/% # "" " """ # | | ????#"" g # # """ # """ # | | ????# "g # # "T # """ # | | ????# "T # # """ #! """ + | | ????######## # "" % """ # | | ???????????# # " # % %# | | ???????????# ###/############# | | ???????????# CC | | ???????????# | | ???????????# | | ???????????# | | ???????????###################### | | ????????????????????????????????? | | ????????????????????????????????? | | ????????????????????????????????? | | ????????????????????????????????? | | ????????????????????????????????? | | ????????????????????????????????? | | ????????????????????????????????? | | ????????????????????????????????? | | ????????????????????????????????? | | ????????????????????????????????? | | ????????????????????????????????? | +----------------------------------------------------+ Best States ------------- Heat Dissipation 115 Coolant Potential 80 Energy Generation 35 Energy Capacity 2300 Matter Stores 300 Matter Capacity 300 Sight Range 20 Terrain Scan Density 10 Power Amplification 40 Corruption Containment 8 Armor Coverage 1125 Resistance: KI 30 Evasion (%) 55 Melee Accuracy 39 Target Analysis 12 Armor Integrity Analysis 40 Recoil Reduction 8 Offensive Hacking 20 Item Schematics ----------------- Com. Mass Driver | -3/Quarantine | Archive Imp. Matter Neutralizer | -3/Quarantine | Archive Robot Schematics ------------------ None Fabricated ------------ Nothing Alien Tech Used ----------------- Transdimensional Reconstructor Dimensional Node Initializer High-powered Transdimensional Reconstructor Achievements -------------- Prison Break Challenges ------------ None Game ------ Seed RecoilSiegeSpoofer Manual? 0 Play Time 01:35:22 Cumulative 140.1 hours Start 2023.05.27 @ 23:30:01 End 2023.05.28 @ 20:17:42 Sessions 5 Manual Loads 0 Difficulty Rogue Special Mode None Game No. 153 Rogue 153 Adventurer 0 Explorer 0 Win Type - Total 0 Types 0/0/0/0/0/0/0/0/0 Lore% 53 Gallery% 68 Achievement% 53 Wizard Run 0 Options --------- ASCII 0 Keyboard 0 Movement Mouse Keybinds 0 Fullscreen 1 Font 18/SmallcapsGlow Map View 76x50 Tactical HUD 1 Map Filters NONE Filters NONE Steam 1 RUN: d624560b-2751-4342-86fc-9c8a1f1ddec8